{"text_format":"1","workbook":"xlsx","n_sheets":2,"sheets":["Данни За Заплати","платежни_шаблон"],"not_rendered":{"charts":0,"images":0,"macros":1,"external_links":0,"defined_names":7,"comments":0,"pivot_tables":0},"unopened":[],"bounds":{"document_bytes":16777216,"sheet_cells":100000,"rows_first":2000,"rows_last":500,"rows_between":2000,"halvings":0,"cell_chars":16384,"cell_head_chars":4096},"cells_cut":0,"cells_raw":0,"read":"whole","date_system":"1900"}

{"sheet":"Данни За Заплати","index":0,"n_rows":13,"n_cols":24,"rows_kept":13,"cut":false,"hidden":false,"merged":[]}
[null,"КАЛКУЛАТОР НА ЗАПЛАТИ",null,null,null,null,null,null,null,null,"ПЕРИОД, ЗАВЪРШВАЩ НА:","2013-04-08",null,"ИМЕ НА ФИРМАТА:",null,"ADVENTURE WORKS"]
[]
[null,"ИД","Име на служител","Изработени редовни часове","Часове почивка","Часове болнични","Часове извънредна работа","Ставка за извънредна работа","Брутна сума за получаване","Данъци и удръжки","Други удръжки","Нетна сума за получаване"," ","Часова ставка","Данъчен статут","Федерална отстъпка","Местен данък","Данък върху доходите","Данък социална осигуровка","Здравни осигуровки","Общо удържани данъци","Удържане за застраховка","Други стандартни удръжки","Общо стандартни\nудръжки"]
[null,1001,"Мартин Банков",50,5,1,null,null,{"$f":"SUM(Служители[[#This Row],[Изработени редовни часове]:[Часове болнични]])*Служители[[#This Row],[Часова ставка]]+Служители[[#This Row],[Часове извънредна работа]]*Служители[[#This Row],[Ставка за извънредна работа]]","v":560},{"$f":"Служители[[#This Row],[Брутна сума за получаване]]*Служители[[#This Row],[Общо удържани данъци]] + Служители[[#This Row],[Общо стандартни\nудръжки]]","v":273.08000000000004},20,{"$f":"Служители[[#This Row],[Брутна сума за получаване]]-Служители[[#This Row],[Данъци и удръжки]]-Служители[[#This Row],[Други удръжки]]","v":266.91999999999996},null,10,1,4,2.3E-2,0.28000000000000003,6.3E-2,1.4500000000000001E-2,{"$f":"SUM(Служители[[#This Row],[Местен данък]:[Здравни осигуровки]])","v":0.38050000000000006},20,40,{"$f":"SUM(Служители[[#This Row],[Удържане за застраховка]:[Други стандартни удръжки]])","v":60}]
[null,1002,"Костадин Христов",40,null,null,null,null,{"$f":"SUM(Служители[[#This Row],[Изработени редовни часове]:[Часове болнични]])*Служители[[#This Row],[Часова ставка]]+Служители[[#This Row],[Часове извънредна работа]]*Служители[[#This Row],[Ставка за извънредна работа]]","v":320},{"$f":"Служители[[#This Row],[Брутна сума за получаване]]*Служители[[#This Row],[Общо удържани данъци]] + Служители[[#This Row],[Общо стандартни\nудръжки]]","v":131.76000000000002},null,{"$f":"Служители[[#This Row],[Брутна сума за получаване]]-Служители[[#This Row],[Данъци и удръжки]]-Служители[[#This Row],[Други удръжки]]","v":188.23999999999998},null,8,1,1,2.3E-2,0.28000000000000003,6.3E-2,1.4500000000000001E-2,{"$f":"SUM(Служители[[#This Row],[Местен данък]:[Здравни осигуровки]])","v":0.38050000000000006},0,10,{"$f":"SUM(Служители[[#This Row],[Удържане за застраховка]:[Други стандартни удръжки]])","v":10}]
[null,1003,"Борислав Димитров",35,3,null,null,null,{"$f":"SUM(Служители[[#This Row],[Изработени редовни часове]:[Часове болнични]])*Служители[[#This Row],[Часова ставка]]+Служители[[#This Row],[Часове извънредна работа]]*Служители[[#This Row],[Ставка за извънредна работа]]","v":532},{"$f":"Служители[[#This Row],[Брутна сума за получаване]]*Служители[[#This Row],[Общо удържани данъци]] + Служители[[#This Row],[Общо стандартни\nудръжки]]","v":240.42600000000004},null,{"$f":"Служители[[#This Row],[Брутна сума за получаване]]-Служители[[#This Row],[Данъци и удръжки]]-Служители[[#This Row],[Други удръжки]]","v":291.57399999999996},null,14,1,3,2.3E-2,0.28000000000000003,6.3E-2,1.4500000000000001E-2,{"$f":"SUM(Служители[[#This Row],[Местен данък]:[Здравни осигуровки]])","v":0.38050000000000006},18,20,{"$f":"SUM(Служители[[#This Row],[Удържане за застраховка]:[Други стандартни удръжки]])","v":38}]
[null,1008,"Петър Банков",50,5,1,null,null,{"$f":"SUM(Служители[[#This Row],[Изработени редовни часове]:[Часове болнични]])*Служители[[#This Row],[Часова ставка]]+Служители[[#This Row],[Часове извънредна работа]]*Служители[[#This Row],[Ставка за извънредна работа]]","v":1120},{"$f":"Служители[[#This Row],[Брутна сума за получаване]]*Служители[[#This Row],[Общо удържани данъци]] + Служители[[#This Row],[Общо стандартни\nудръжки]]","v":441.16000000000008},null,{"$f":"Служители[[#This Row],[Брутна сума за получаване]]-Служители[[#This Row],[Данъци и удръжки]]-Служители[[#This Row],[Други удръжки]]","v":678.83999999999992},null,20,1,0,2.3E-2,0.28000000000000003,6.3E-2,1.4500000000000001E-2,{"$f":"SUM(Служители[[#This Row],[Местен данък]:[Здравни осигуровки]])","v":0.38050000000000006},15,null,{"$f":"SUM(Служители[[#This Row],[Удържане за застраховка]:[Други стандартни удръжки]])","v":15}]
[null,1011,"Христина Христозова",40,null,null,2,15,{"$f":"SUM(Служители[[#This Row],[Изработени редовни часове]:[Часове болнични]])*Служители[[#This Row],[Часова ставка]]+Служители[[#This Row],[Часове извънредна работа]]*Служители[[#This Row],[Ставка за извънредна работа]]","v":430},{"$f":"Служители[[#This Row],[Брутна сума за получаване]]*Служители[[#This Row],[Общо удържани данъци]] + Служители[[#This Row],[Общо стандартни\nудръжки]]","v":223.61500000000004},null,{"$f":"Служители[[#This Row],[Брутна сума за получаване]]-Служители[[#This Row],[Данъци и удръжки]]-Служители[[#This Row],[Други удръжки]]","v":206.38499999999996},null,10,1,0,2.3E-2,0.28000000000000003,6.3E-2,1.4500000000000001E-2,{"$f":"SUM(Служители[[#This Row],[Местен данък]:[Здравни осигуровки]])","v":0.38050000000000006},20,40,{"$f":"SUM(Служители[[#This Row],[Удържане за застраховка]:[Други стандартни удръжки]])","v":60}]
[null,1012,"Теодор Тодоров",40,5,1,null,null,{"$f":"SUM(Служители[[#This Row],[Изработени редовни часове]:[Часове болнични]])*Служители[[#This Row],[Часова ставка]]+Служители[[#This Row],[Часове извънредна работа]]*Служители[[#This Row],[Ставка за извънредна работа]]","v":552},{"$f":"Служители[[#This Row],[Брутна сума за получаване]]*Служители[[#This Row],[Общо удържани данъци]] + Служители[[#This Row],[Общо стандартни\nудръжки]]","v":270.03600000000006},null,{"$f":"Служители[[#This Row],[Брутна сума за получаване]]-Служители[[#This Row],[Данъци и удръжки]]-Служители[[#This Row],[Други удръжки]]","v":281.96399999999994},null,12,1,4,2.3E-2,0.28000000000000003,6.3E-2,1.4500000000000001E-2,{"$f":"SUM(Служители[[#This Row],[Местен данък]:[Здравни осигуровки]])","v":0.38050000000000006},20,40,{"$f":"SUM(Служители[[#This Row],[Удържане за застраховка]:[Други стандартни удръжки]])","v":60}]
[null,1025,"Вяра Калнъкова",36,null,2,1,18,{"$f":"SUM(Служители[[#This Row],[Изработени редовни часове]:[Часове болнични]])*Служители[[#This Row],[Часова ставка]]+Служители[[#This Row],[Часове извънредна работа]]*Служители[[#This Row],[Ставка за извънредна работа]]","v":474},{"$f":"Служители[[#This Row],[Брутна сума за получаване]]*Служители[[#This Row],[Общо удържани данъци]] + Служители[[#This Row],[Общо стандартни\nудръжки]]","v":225.35700000000003},25,{"$f":"Служители[[#This Row],[Брутна сума за получаване]]-Служители[[#This Row],[Данъци и удръжки]]-Служители[[#This Row],[Други удръжки]]","v":223.64299999999997},null,12,1,2,2.3E-2,0.28000000000000003,6.3E-2,1.4500000000000001E-2,{"$f":"SUM(Служители[[#This Row],[Местен данък]:[Здравни осигуровки]])","v":0.38050000000000006},25,20,{"$f":"SUM(Служители[[#This Row],[Удържане за застраховка]:[Други стандартни удръжки]])","v":45}]
[null,1032,"Ивайло Главчовски",40,5,1,null,null,{"$f":"SUM(Служители[[#This Row],[Изработени редовни часове]:[Часове болнични]])*Служители[[#This Row],[Часова ставка]]+Служители[[#This Row],[Часове извънредна работа]]*Служители[[#This Row],[Ставка за извънредна работа]]","v":460},{"$f":"Служители[[#This Row],[Брутна сума за получаване]]*Служители[[#This Row],[Общо удържани данъци]] + Служители[[#This Row],[Общо стандартни\nудръжки]]","v":175.03000000000003},50,{"$f":"Служители[[#This Row],[Брутна сума за получаване]]-Служители[[#This Row],[Данъци и удръжки]]-Служители[[#This Row],[Други удръжки]]","v":234.96999999999997},null,10,1,3,2.3E-2,0.28000000000000003,6.3E-2,1.4500000000000001E-2,{"$f":"SUM(Служители[[#This Row],[Местен данък]:[Здравни осигуровки]])","v":0.38050000000000006},null,null,{"$f":"SUM(Служители[[#This Row],[Удържане за застраховка]:[Други стандартни удръжки]])","v":0}]
[null,1049,"Станимир Кирилов",40,1,null,null,null,{"$f":"SUM(Служители[[#This Row],[Изработени редовни часове]:[Часове болнични]])*Служители[[#This Row],[Часова ставка]]+Служители[[#This Row],[Часове извънредна работа]]*Служители[[#This Row],[Ставка за извънредна работа]]","v":615},{"$f":"Служители[[#This Row],[Брутна сума за получаване]]*Служители[[#This Row],[Общо удържани данъци]] + Служители[[#This Row],[Общо стандартни\nудръжки]]","v":259.00750000000005},23,{"$f":"Служители[[#This Row],[Брутна сума за получаване]]-Служители[[#This Row],[Данъци и удръжки]]-Служители[[#This Row],[Други удръжки]]","v":332.99249999999995},null,15,1,2,2.3E-2,0.28000000000000003,6.3E-2,1.4500000000000001E-2,{"$f":"SUM(Служители[[#This Row],[Местен данък]:[Здравни осигуровки]])","v":0.38050000000000006},25,null,{"$f":"SUM(Служители[[#This Row],[Удържане за застраховка]:[Други стандартни удръжки]])","v":25}]
[null,"Общи суми",{"$f":"SUBTOTAL(103,Служители[Име на служител])","v":9},{"$f":"SUBTOTAL(109,Служители[Изработени редовни часове])","v":371},{"$f":"SUBTOTAL(109,Служители[Часове почивка])","v":24},{"$f":"SUBTOTAL(109,Служители[Часове болнични])","v":6},{"$f":"SUBTOTAL(109,Служители[Часове извънредна работа])","v":3},null,{"$f":"SUBTOTAL(109,Служители[Брутна сума за получаване])","v":5063},{"$f":"SUBTOTAL(109,Служители[Данъци и удръжки])","v":2239.4715000000001},{"$f":"SUBTOTAL(109,Служители[Други удръжки])","v":118},{"$f":"SUBTOTAL(109,Служители[Нетна сума за получаване])","v":2705.5284999999994},null,null,null,null,null,null,null,null,null,{"$f":"SUBTOTAL(109,Служители[Удържане за застраховка])","v":143},{"$f":"SUBTOTAL(109,Служители[Други стандартни удръжки])","v":170},{"$f":"SUBTOTAL(109,Служители[Общо стандартни\nудръжки])","v":313}]

{"sheet":"платежни_шаблон","index":1,"n_rows":47,"n_cols":13,"rows_kept":47,"cut":false,"hidden":true,"merged":[[2,7,2,8],[14,7,14,8],[26,7,26,8],[38,7,38,8],[38,11,38,12],[26,11,26,12],[14,11,14,12],[2,11,2,12],[2,3,2,4],[14,3,14,4],[26,3,26,4],[38,3,38,4],[44,2,44,3],[8,2,8,3],[9,2,9,3],[45,2,45,3],[32,2,32,3],[33,2,33,3],[20,2,20,3],[21,2,21,3]]}
[]
[null,null,{"$f":"Име_на_фирма","v":"ADVENTURE WORKS"}]
[null,null,"ПЕРИОД",{"$f":"Период_завършващ_на","v":41372},null,null,"ИМЕ",{"$f":"IFERROR(INDEX(Служители[Име на служител],Платежни),\"\")","v":"Мартин Банков"},null,null,"ИД НА СЛУЖИТЕЛ",{"$f":"IFERROR(INDEX(Служители[ИД],Платежни),\"\")","v":1001}]
[null,null,"Данъчен статут",null,{"$f":"IFERROR(INDEX(Служители[Данъчен статут],Платежни),\"\")","v":1},null,"Федерална отстъпка (от W-4)",null,{"$f":"IFERROR(INDEX(Служители[Федерална отстъпка],Платежни),\"\")","v":4},null,"Изработени часове",null,{"$f":"IFERROR(INDEX(Служители[Изработени редовни часове],Платежни),\"\")","v":50}]
[null,null,"Часова ставка",null,{"$f":"IFERROR(INDEX(Служители[Часова ставка],Платежни),\"\")","v":10},null,"Ставка за извънредна работа",null,{"$f":"IFERROR(INDEX(Служители[Ставка за извънредна работа],Платежни),\"\")","v":0},null,"Часове болнични",null,{"$f":"IFERROR(INDEX(Служители[Часове болнични],Платежни),\"\")","v":1}]
[null,null,"Данък социална осигуровка",null,{"$f":"IFERROR(INDEX(Служители[Данък социална осигуровка],Платежни)  *  INDEX(Служители[Брутна сума за получаване],Платежни),\"\")","v":35.28},null,"Данък върху доходите",null,{"$f":"IFERROR(INDEX(Служители[Данък върху доходите],Платежни)  *  INDEX(Служители[Брутна сума за получаване],Платежни),\"\")","v":156.80000000000001},null,"Часове почивка",null,{"$f":"IFERROR(INDEX(Служители[Часове почивка],Платежни),\"\")","v":5}]
[null,null,"Здравни осигуровки",null,{"$f":"IFERROR(INDEX(Служители[Здравни осигуровки],Платежни)  *  INDEX(Служители[Брутна сума за получаване],Платежни),\"\")","v":8.120000000000001},null,"Местен данък",null,{"$f":"IFERROR(INDEX(Служители[Местен данък],Платежни)  *  INDEX(Служители[Брутна сума за получаване],Платежни),\"\")","v":12.879999999999999},null,"Часове извънредна работа",null,{"$f":"IFERROR(INDEX(Служители[Часове извънредна работа],Платежни),\"\")","v":0}]
[null,null,"Удържане за застраховка",null,{"$f":"IFERROR(INDEX(Служители[Удържане за застраховка],Платежни),\"\")","v":20},null,"Други стандартни удръжки",null,{"$f":"IFERROR(INDEX(Служители[Други стандартни удръжки],Платежни),\"\")","v":40},null,"Брутна сума за получаване",null,{"$f":"IFERROR(INDEX(Служители[Брутна сума за получаване],Платежни),\"\")","v":560}]
[null,null,"Общо данъци",null,{"$f":"IFERROR(INDEX(Служители[Данъци и удръжки],Платежни),\"\")","v":273.08000000000004},null,"Други удръжки",null,{"$f":"IFERROR(INDEX(Служители[Други удръжки],Платежни),\"\")","v":20},null,"Общо данъци и удръжки",null,{"$f":"IFERROR(INDEX(Служители[Данъци и удръжки],Платежни)  +  INDEX(Служители[Други удръжки],Платежни),\"\")","v":293.08000000000004}]
[null,null," и стандартни удръжки"]
[null,null,null,null,null,null,null,null,null,null,"НЕТНА СУМА ЗА ПОЛУЧАВАНЕ",null,{"$f":"IFERROR(INDEX(Служители[Нетна сума за получаване],Платежни),\"\")","v":266.91999999999996}]
[]
[]
[null,null,{"$f":"Име_на_фирма","v":"ADVENTURE WORKS"}]
[null,null,"ПЕРИОД",{"$f":"Период_завършващ_на","v":41372},null,null,"ИМЕ",{"$f":"IFERROR(INDEX(Служители[Име на служител],Платежни),\"\")","v":"Костадин Христов"},null,null,"ИД НА СЛУЖИТЕЛ",{"$f":"IFERROR(INDEX(Служители[ИД],Платежни),\"\")","v":1002}]
[null,null,"Данъчен статут",null,{"$f":"IFERROR(INDEX(Служители[Данъчен статут],Платежни),\"\")","v":1},null,"Федерална отстъпка (от W-4)",null,{"$f":"IFERROR(INDEX(Служители[Федерална отстъпка],Платежни),\"\")","v":1},null,"Изработени часове",null,{"$f":"IFERROR(INDEX(Служители[Изработени редовни часове],Платежни),\"\")","v":40}]
[null,null,"Часова ставка",null,{"$f":"IFERROR(INDEX(Служители[Часова ставка],Платежни),\"\")","v":8},null,"Ставка за извънредна работа",null,{"$f":"IFERROR(INDEX(Служители[Ставка за извънредна работа],Платежни),\"\")","v":0},null,"Часове болнични",null,{"$f":"IFERROR(INDEX(Служители[Часове болнични],Платежни),\"\")","v":0}]
[null,null,"Данък социална осигуровка",null,{"$f":"IFERROR(INDEX(Служители[Данък социална осигуровка],Платежни)  *  INDEX(Служители[Брутна сума за получаване],Платежни),\"\")","v":20.16},null,"Данък върху доходите",null,{"$f":"IFERROR(INDEX(Служители[Данък върху доходите],Платежни)  *  INDEX(Служители[Брутна сума за получаване],Платежни),\"\")","v":89.600000000000009},null,"Часове почивка",null,{"$f":"IFERROR(INDEX(Служители[Часове почивка],Платежни),\"\")","v":0}]
[null,null,"Здравни осигуровки",null,{"$f":"IFERROR(INDEX(Служители[Здравни осигуровки],Платежни)  *  INDEX(Служители[Брутна сума за получаване],Платежни),\"\")","v":4.6400000000000006},null,"Местен данък",null,{"$f":"IFERROR(INDEX(Служители[Местен данък],Платежни)  *  INDEX(Служители[Брутна сума за получаване],Платежни),\"\")","v":7.3599999999999994},null,"Часове извънредна работа",null,{"$f":"IFERROR(INDEX(Служители[Часове извънредна работа],Платежни),\"\")","v":0}]
[null,null,"Удържане за застраховка",null,{"$f":"IFERROR(INDEX(Служители[Удържане за застраховка],Платежни),\"\")","v":0},null,"Други стандартни удръжки",null,{"$f":"IFERROR(INDEX(Служители[Други стандартни удръжки],Платежни),\"\")","v":10},null,"Брутна сума за получаване",null,{"$f":"IFERROR(INDEX(Служители[Брутна сума за получаване],Платежни),\"\")","v":320}]
[null,null,"Общо данъци",null,{"$f":"IFERROR(INDEX(Служители[Данъци и удръжки],Платежни),\"\")","v":131.76000000000002},null,"Други удръжки",null,{"$f":"IFERROR(INDEX(Служители[Други удръжки],Платежни),\"\")","v":0},null,"Общо данъци и удръжки",null,{"$f":"IFERROR(INDEX(Служители[Данъци и удръжки],Платежни)  +  INDEX(Служители[Други удръжки],Платежни),\"\")","v":131.76000000000002}]
[null,null," и стандартни удръжки"]
[null,null,null,null,null,null,null,null,null,null,"НЕТНА СУМА ЗА ПОЛУЧАВАНЕ",null,{"$f":"IFERROR(INDEX(Служители[Нетна сума за получаване],Платежни),\"\")","v":188.23999999999998}]
[]
[]
[null,null,{"$f":"Име_на_фирма","v":"ADVENTURE WORKS"}]
[null,null,"ПЕРИОД",{"$f":"Период_завършващ_на","v":41372},null,null,"ИМЕ",{"$f":"IFERROR(INDEX(Служители[Име на служител],Платежни),\"\")","v":"Борислав Димитров"},null,null,"ИД НА СЛУЖИТЕЛ",{"$f":"IFERROR(INDEX(Служители[ИД],Платежни),\"\")","v":1003}]
[null,null,"Данъчен статут",null,{"$f":"IFERROR(INDEX(Служители[Данъчен статут],Платежни),\"\")","v":1},null,"Федерална отстъпка (от W-4)",null,{"$f":"IFERROR(INDEX(Служители[Федерална отстъпка],Платежни),\"\")","v":3},null,"Изработени часове",null,{"$f":"IFERROR(INDEX(Служители[Изработени редовни часове],Платежни),\"\")","v":35}]
[null,null,"Часова ставка",null,{"$f":"IFERROR(INDEX(Служители[Часова ставка],Платежни),\"\")","v":14},null,"Ставка за извънредна работа",null,{"$f":"IFERROR(INDEX(Служители[Ставка за извънредна работа],Платежни),\"\")","v":0},null,"Часове болнични",null,{"$f":"IFERROR(INDEX(Служители[Часове болнични],Платежни),\"\")","v":0}]
[null,null,"Данък социална осигуровка",null,{"$f":"IFERROR(INDEX(Служители[Данък социална осигуровка],Платежни)  *  INDEX(Служители[Брутна сума за получаване],Платежни),\"\")","v":33.515999999999998},null,"Данък върху доходите",null,{"$f":"IFERROR(INDEX(Служители[Данък върху доходите],Платежни)  *  INDEX(Служители[Брутна сума за получаване],Платежни),\"\")","v":148.96},null,"Часове почивка",null,{"$f":"IFERROR(INDEX(Служители[Часове почивка],Платежни),\"\")","v":3}]
[null,null,"Здравни осигуровки",null,{"$f":"IFERROR(INDEX(Служители[Здравни осигуровки],Платежни)  *  INDEX(Служители[Брутна сума за получаване],Платежни),\"\")","v":7.7140000000000004},null,"Местен данък",null,{"$f":"IFERROR(INDEX(Служители[Местен данък],Платежни)  *  INDEX(Служители[Брутна сума за получаване],Платежни),\"\")","v":12.236000000000001},null,"Часове извънредна работа",null,{"$f":"IFERROR(INDEX(Служители[Часове извънредна работа],Платежни),\"\")","v":0}]
[null,null,"Удържане за застраховка",null,{"$f":"IFERROR(INDEX(Служители[Удържане за застраховка],Платежни),\"\")","v":18},null,"Други стандартни удръжки",null,{"$f":"IFERROR(INDEX(Служители[Други стандартни удръжки],Платежни),\"\")","v":20},null,"Брутна сума за получаване",null,{"$f":"IFERROR(INDEX(Служители[Брутна сума за получаване],Платежни),\"\")","v":532}]
[null,null,"Общо данъци",null,{"$f":"IFERROR(INDEX(Служители[Данъци и удръжки],Платежни),\"\")","v":240.42600000000004},null,"Други удръжки",null,{"$f":"IFERROR(INDEX(Служители[Други удръжки],Платежни),\"\")","v":0},null,"Общо данъци и удръжки",null,{"$f":"IFERROR(INDEX(Служители[Данъци и удръжки],Платежни)  +  INDEX(Служители[Други удръжки],Платежни),\"\")","v":240.42600000000004}]
[null,null," и стандартни удръжки"]
[null,null,null,null,null,null,null,null,null,null,"НЕТНА СУМА ЗА ПОЛУЧАВАНЕ",null,{"$f":"IFERROR(INDEX(Служители[Нетна сума за получаване],Платежни),\"\")","v":291.57399999999996}]
[]
[]
[null,null,{"$f":"Име_на_фирма","v":"ADVENTURE WORKS"}]
[null,null,"ПЕРИОД",{"$f":"Период_завършващ_на","v":41372},null,null,"ИМЕ",{"$f":"IFERROR(INDEX(Служители[Име на служител],Платежни),\"\")","v":"Петър Банков"},null,null,"ИД НА СЛУЖИТЕЛ",{"$f":"IFERROR(INDEX(Служители[ИД],Платежни),\"\")","v":1008}]
[null,null,"Данъчен статут",null,{"$f":"IFERROR(INDEX(Служители[Данъчен статут],Платежни),\"\")","v":1},null,"Федерална отстъпка (от W-4)",null,{"$f":"IFERROR(INDEX(Служители[Федерална отстъпка],Платежни),\"\")","v":0},null,"Изработени часове",null,{"$f":"IFERROR(INDEX(Служители[Изработени редовни часове],Платежни),\"\")","v":50}]
[null,null,"Часова ставка",null,{"$f":"IFERROR(INDEX(Служители[Часова ставка],Платежни),\"\")","v":20},null,"Ставка за извънредна работа",null,{"$f":"IFERROR(INDEX(Служители[Ставка за извънредна работа],Платежни),\"\")","v":0},null,"Часове болнични",null,{"$f":"IFERROR(INDEX(Служители[Часове болнични],Платежни),\"\")","v":1}]
[null,null,"Данък социална осигуровка",null,{"$f":"IFERROR(INDEX(Служители[Данък социална осигуровка],Платежни)  *  INDEX(Служители[Брутна сума за получаване],Платежни),\"\")","v":70.56},null,"Данък върху доходите",null,{"$f":"IFERROR(INDEX(Служители[Данък върху доходите],Платежни)  *  INDEX(Служители[Брутна сума за получаване],Платежни),\"\")","v":313.60000000000002},null,"Часове почивка",null,{"$f":"IFERROR(INDEX(Служители[Часове почивка],Платежни),\"\")","v":5}]
[null,null,"Здравни осигуровки",null,{"$f":"IFERROR(INDEX(Служители[Здравни осигуровки],Платежни)  *  INDEX(Служители[Брутна сума за получаване],Платежни),\"\")","v":16.240000000000002},null,"Местен данък",null,{"$f":"IFERROR(INDEX(Служители[Местен данък],Платежни)  *  INDEX(Служители[Брутна сума за получаване],Платежни),\"\")","v":25.759999999999998},null,"Часове извънредна работа",null,{"$f":"IFERROR(INDEX(Служители[Часове извънредна работа],Платежни),\"\")","v":0}]
[null,null,"Удържане за застраховка",null,{"$f":"IFERROR(INDEX(Служители[Удържане за застраховка],Платежни),\"\")","v":15},null,"Други стандартни удръжки",null,{"$f":"IFERROR(INDEX(Служители[Други стандартни удръжки],Платежни),\"\")","v":0},null,"Брутна сума за получаване",null,{"$f":"IFERROR(INDEX(Служители[Брутна сума за получаване],Платежни),\"\")","v":1120}]
[null,null,"Общо данъци",null,{"$f":"IFERROR(INDEX(Служители[Данъци и удръжки],Платежни),\"\")","v":441.16000000000008},null,"Други удръжки",null,{"$f":"IFERROR(INDEX(Служители[Други удръжки],Платежни),\"\")","v":0},null,"Общо данъци и удръжки",null,{"$f":"IFERROR(INDEX(Служители[Данъци и удръжки],Платежни)  +  INDEX(Служители[Други удръжки],Платежни),\"\")","v":441.16000000000008}]
[null,null," и стандартни удръжки"]
[null,null,null,null,null,null,null,null,null,null,"НЕТНА СУМА ЗА ПОЛУЧАВАНЕ",null,{"$f":"IFERROR(INDEX(Служители[Нетна сума за получаване],Платежни),\"\")","v":678.83999999999992}]